bitfinex/quotes_ETHUSD_20250622
["timestamp","ask_amount","ask_price","bid_price","bid_amount"]
[1750583262660,9.171,2278.6,2278.4,4.38904131]
[1750583262827,12.2488403,2278.6,2278.5,4.38885231]
[1750583263227,12.2488403,2278.6,2278.4,4.38895682]
[1750583263428,12.2488403,2278.6,2278.1,0.7788]
[1750583263429,12.2488403,2278.6,2278.5,4.38885231]
[1750583263864,12.2488403,2278.6,2278.4,4.38895647]
[1750583264932,12.2488403,2278.6,2278.3,4.38915357]
[1750583265553,2.22488403,2278.5,2278.3,4.38915357]
[1750583265753,0.8329,2278.4,2277.9,0.802]
[1750583266058,7.259,2278.3,2277.9,4.38992609]
[1750583266564,11.6482461,2278.3,2277.8,4.39005557]
[1750583266768,0.8329,2278.1,2277.4,1.2317177]
[1750583266954,9.168,2278.0,2277.6,4.39045808]
[1750583267150,9.168,2278.0,2277.6,4.39042732]
[1750583267463,9.168,2278.0,2277.6,4.39058373]
[1750583267870,0.8329,2277.8,2277.3,4.39109425]
[1750583268058,7.258,2277.7,2277.4,4.39084056]
[1750583268764,7.258,2277.7,2277.5,4.39074712]
[1750583269265,7.258,2277.7,2277.4,4.39088286]
[1750583269631,7.258,2277.7,2277.3,4.39107132]
[1750583269832,7.258,2277.7,2277.4,4.39087741]
[1750583270368,7.258,2277.7,2277.3,4.39108083]
[1750583271559,0.55,2277.4,2276.9,5.20027735]
[1750583271767,9.169,2277.3,2276.9,4.39191356]
[1750583272088,0.7734,2277.1,2276.9,4.3919213]
[1750583272284,7.258,2277.0,2276.9,4.3919213]
[1750583272444,7.258,2277.0,2276.8,4.39202762]
[1750583272643,7.258,2277.0,2276.9,4.3919364]
[1750583273886,7.258,2277.0,2276.8,4.39203681]
[1750583274180,7.258,2277.0,2276.9,4.3919364]
[1750583275467,7.258,2277.0,2276.8,4.3920221]
[1750583275672,7.258,2277.0,2276.9,4.3919364]
[1750583278098,7.258,2277.0,2276.7,4.39225079]
[1750583278303,7.258,2277.0,2276.8,4.39203052]
[1750583278464,0.55,2276.9,2276.6,4.39241228]
[1750583280165,0.55,2276.9,2276.7,4.3922862]
[1750583280901,0.55,2276.9,2276.6,4.39241228]
[1750583280902,0.55,2276.9,2276.6,4.39244722]
[1750583281405,0.55,2276.9,2276.7,14.39231656]
[1750583282010,0.55,2276.9,2276.6,14.39241836]
[1750583282199,0.55,2276.9,2276.6,14.39243819]
[1750583282503,0.55,2276.9,2276.7,4.39230024]
[1750583282710,0.55,2276.9,2276.6,14.39242684]
[1750583283209,0.8265,2276.7,2276.0,0.8279]
[1750583283506,7.259,2276.6,2276.4,4.39289627]
[1750583283920,7.259,2276.6,2276.3,14.39302781]
[1750583284078,7.259,2276.6,2276.4,4.392881]
[1750583284470,7.259,2276.6,2276.3,14.39301719]
[1750583284909,7.259,2276.6,2276.5,4.3927081]
[1750583285114,2.75961028,2276.9,2276.5,4.39261731]
[1750583285305,7.26,2276.6,2276.5,4.39261731]
[1750583286416,1.3765,2276.5,2276.0,0.8279]
[1750583286616,1.3765,2276.5,2276.2,4.39319011]
[1750583286617,9.168,2276.4,2276.2,4.39319011]
[1750583287308,9.168,2276.4,2276.2,4.39318753]
[1750583287892,9.168,2276.4,2276.1,4.39339179]
[1750583288314,9.718,2276.4,2276.3,4.39309405]
[1750583288819,9.17,2276.4,2276.3,4.39309405]
[1750583289416,1.91,2276.5,2276.4,4.39271574]
[1750583289623,9.17,2276.5,2276.4,4.39271574]
[1750583289797,1.03402777,2276.9,2276.6,4.3923459]
[1750583290000,9.17,2276.8,2276.6,4.3923459]
[1750583290203,11.91,2276.8,2276.7,4.39232222]
[1750583290409,19.72,2276.8,2276.7,4.39232222]
[1750583291035,0.22952777,2276.9,2276.8,4.3921293]
[1750583291330,9.17,2276.8,2276.7,4.39232222]
[1750583291995,1.91,2276.8,2276.7,4.39232222]
[1750583292229,9.17,2276.8,2276.7,4.39232222]
[1750583292827,9.17,2276.8,2276.4,4.39287797]
[1750583292828,1.3545,2276.7,2276.4,4.39287797]
[1750583293135,0.98403,2276.7,2276.3,4.39295016]
[1750583293544,10.98403,2276.7,2276.1,4.39340177]
[1750583293747,10.98403,2276.7,2276.0,0.7524]
[1750583293748,10.98403,2276.7,2276.2,4.39313454]
[1750583293906,2.54632145,2276.6,2276.2,4.39313454]
[1750583294241,0.55,2276.5,2276.2,4.39313454]
[1750583294422,7.26,2276.4,2276.2,4.39313454]
[1750583294628,7.26,2276.4,2276.3,4.39309405]
[1750583295136,7.26,2276.4,2276.2,4.39318227]
[1750583295523,7.26,2276.4,2276.3,4.39309405]
[1750583296525,10.43403,2276.7,2276.3,4.39309405]
[1750583296526,0.55,2276.6,2276.4,4.39271713]
[1750583296731,9.17,2276.5,2276.4,4.39271713]
[1750583297234,9.17,2276.5,2276.1,4.39343486]
[1750583297437,9.17,2276.5,2276.3,4.39307343]
[1750583297739,9.17,2276.5,2276.2,4.39326366]
[1750583297939,0.8052,2276.4,2276.3,4.39309405]
[1750583298317,0.8052,2276.4,2276.2,4.3931989]
[1750583298837,0.8052,2276.4,2276.0,4.39353633]
[1750583298838,0.55,2276.3,2276.0,4.39353633]
[1750583299846,0.55,2276.3,2276.1,4.39347594]
[1750583300043,1.7040603,2276.3,2276.1,4.39347594]
[1750583300264,1.7040603,2276.3,2276.0,4.39356697]
[1750583300461,1.7040603,2276.3,2275.9,4.83512149]
[1750583302029,1.7040603,2276.3,2276.0,4.39366357]
[1750583302342,1.7040603,2276.3,2276.1,4.39347305]
[1750583303865,1.7040603,2276.3,2276.0,4.3935771]
[1750583304924,1.7040603,2276.3,2275.9,4.82849951]
[1750583304925,11.7040603,2276.3,2275.9,4.82849951]
[1750583305148,0.8034,2276.0,2275.6,4.39444542]
[1750583305354,9.17,2275.9,2275.5,5.1839234]
[1750583305548,9.17,2275.9,2275.7,4.39410669]
[1750583305851,9.17,2275.9,2275.7,0.43274621]
[1750583306052,9.17,2275.9,2275.8,4.39405923]
[1750583306259,10.16734,2275.9,2275.6,4.3944363]
[1750583306499,10.16734,2275.9,2275.4,4.39465989]
[1750583306500,9.17,2275.9,2275.3,0.7873]
[1750583306650,9.72,2275.9,2275.3,0.7873]
[1750583307052,9.72,2275.9,2275.5,4.3945277]
[1750583307379,0.55,2275.8,2275.5,4.39453219]
[1750583307896,0.55,2275.6,2275.0,4.39551074]
[1750583308069,5.1976745,2275.7,2275.0,4.39551074]
[1750583308070,1.3534,2275.4,2275.0,4.39551074]
[1750583308255,0.55,2275.2,2274.3,0.7873]
[1750583308599,7.26,2275.1,2274.3,10.7873]
[1750583308802,7.26,2275.1,2274.9,4.39568888]
[1750583308949,7.26,2275.1,2275.0,4.39560439]
[1750583309383,7.26,2275.1,2274.9,4.39568888]
[1750583309384,7.26,2275.1,2274.9,4.39573277]
[1750583309774,8.0634,2275.1,2274.7,4.39613712]
[1750583309974,8.0634,2275.1,2274.4,0.7873]
[1750583310191,8.0634,2275.1,2274.9,4.3956981]
[1750583310388,8.0634,2275.1,2274.4,0.7873]
[1750583310389,0.55,2275.0,2274.4,0.7873]
[1750583310556,10.55,2275.0,2274.4,0.7873]
[1750583310756,0.55,2274.8,2274.5,4.39639367]
[1750583310994,9.169,2274.7,2274.6,4.39637738]
[1750583311488,9.169,2274.7,2274.4,4.39674037]
[1750583311686,9.169,2274.7,2274.6,4.39637738]
[1750583312195,1.909,2274.7,2274.6,4.39637738]
[1750583312392,9.17,2274.7,2274.6,4.39637738]
[1750583312593,9.17,2274.7,2274.3,1.24703945]
[1750583312794,9.9696,2274.7,2274.3,4.82710232]
[1750583312961,0.55,2274.6,2274.1,0.2192008]
[1750583313162,10.55,2274.6,2274.2,4.39712147]
[1750583313493,10.55,2274.6,2274.1,0.2192008]
[1750583313695,0.55,2274.3,2274.1,0.2192008]
[1750583313893,24.88055064,2274.2,2274.1,0.2192008]
[1750583314094,27.86330239,2274.2,2274.1,0.2192008]
[1750583314391,29.55361196,2274.2,2274.1,0.2192008]
[1750583314997,0.55,2273.4,2272.9,5.1866404]
[1750583315214,0.55,2273.2,2272.9,4.39958166]
[1750583315420,0.55,2273.2,2273.0,4.39947206]
[1750583316109,0.55,2273.2,2273.1,4.39927851]
[1750583316483,3.50218645,2273.6,2273.5,4.3985045]
[1750583316813,10.76418645,2273.6,2273.5,4.3985045]
[1750583318016,1.59318645,2273.6,2273.5,4.3985045]
[1750583318315,8.85718645,2273.6,2273.5,4.3985045]
[1750583319521,8.85718645,2273.6,2273.4,4.39862482]
[1750583319681,1.3826,2273.5,2272.7,5.15161046]
[1750583319882,1.3826,2273.5,2273.2,4.3990846]
[1750583320111,15.78113399,2273.5,2272.9,4.39949752]
[1750583320326,11.3826,2273.5,2273.0,4.39945638]
[1750583320522,0.55,2273.3,2273.0,4.39945638]
[1750583320724,9.174,2273.2,2272.9,4.39957486]
[1750583320926,2.57148979,2273.4,2272.7,0.7517]
[1750583321202,2.57148979,2273.4,2273.3,4.39889147]
[1750583321203,0.55,2273.4,2273.3,4.39889147]
[1750583321439,9.175,2273.4,2272.9,4.3996161]
[1750583321640,9.175,2273.4,2273.2,4.3989499]
[1750583321956,2.6699051,2273.6,2273.5,4.3985045]
[1750583322234,10.76818645,2273.6,2273.5,4.3985045]
[1750583323235,10.0,2273.5,2272.9,5.2151085]
[1750583323445,10.8224,2273.5,2273.2,4.39895918]
[1750583323839,0.55,2273.4,2272.9,0.8155]
[1750583324045,0.55,2273.4,2272.8,4.39974639]
[1750583324209,0.55,2273.2,2272.4,0.8155]
[1750583324541,10.565,2273.5,2273.4,4.39869798]
[1750583324542,12.05699429,2273.5,2273.4,4.39869798]
[1750583324743,12.05699429,2273.5,2272.7,0.7871]
[1750583324744,0.8051,2273.4,2272.7,0.7871]
[1750583324944,5.20389537,2273.4,2272.8,4.39972108]
[1750583325129,4.94895915,2273.3,2272.6,4.40014943]
[1750583325340,0.55,2273.0,2272.6,4.40014943]
[1750583325534,9.9891,2272.9,2272.6,4.40014943]
[1750583325738,9.9891,2272.9,2272.4,5.18760399]
[1750583325739,0.55,2272.8,2272.4,0.7871]
[1750583325946,0.55,2272.8,2272.5,4.40044004]
[1750583326139,0.55,2272.8,2272.5,4.40033872]
[1750583326319,9.185,2272.7,2272.5,4.40033872]
[1750583326515,9.185,2272.7,2272.6,4.40024641]
[1750583326830,9.19,2272.7,2272.6,4.40024641]
[1750583327232,7.281,2272.7,2272.6,4.40024641]
[1750583327456,7.281,2272.7,2272.6,5.18734641]
[1750583327655,10.565,2273.2,2273.1,4.39927851]
[1750583327863,7.284,2273.2,2273.1,4.39927851]
[1750583328044,10.567,2274.0,2273.4,4.39869798]
[1750583328220,3.40299429,2273.5,2273.4,4.39869798]
[1750583328429,3.40299429,2273.5,2273.4,5.18969798]
[1750583328430,10.68799429,2273.5,2273.4,5.18969798]
[1750583329021,10.68799429,2273.5,2273.2,4.39901252]
[1750583331665,12.1966087,2273.5,2273.1,0.791]
[1750583331967,12.1966087,2273.5,2272.9,4.3995957]
[1750583331968,12.1966087,2273.5,2273.0,4.39930729]
[1750583332361,16.59512126,2273.5,2273.0,4.39930729]
[1750583332544,0.7864,2273.4,2273.0,4.39930729]
[1750583332862,4.94896463,2273.3,2272.6,0.791]
[1750583333064,10.7864,2273.4,2272.2,0.791]
[1750583333065,0.55,2273.1,2272.2,0.791]
[1750583333231,0.55,2273.1,2272.4,4.40063369]
[1750583333232,9.9834,2273.0,2272.4,4.40063369]
[1750583333431,4.3996921,2272.9,2272.4,4.40063369]
[1750583334367,10.55,2272.8,2272.3,4.40073461]
[1750583334550,14.94995686,2272.8,2272.2,5.19185856]
[1750583334759,17.4432805,2272.8,2272.3,4.40080302]
[1750583334940,13.04332364,2272.8,2272.4,4.40045772]
[1750583335144,13.04332364,2272.8,2272.2,0.8350046]
[1750583335145,13.04332364,2272.8,2272.5,4.40037213]
[1750583335853,13.04332364,2272.8,2272.4,4.40053262]
[1750583336445,7.283,2272.7,2272.3,4.40075959]
[1750583336742,7.283,2272.7,2272.2,5.23595192]
[1750583336947,7.283,2272.7,2272.3,4.4007326]
[1750583337149,7.283,2272.7,2272.5,4.40040787]
[1750583337347,9.191,2272.6,2272.5,4.40040787]
[1750583337647,9.191,2272.6,2272.4,4.40055998]
[1750583338574,9.191,2272.6,2272.5,4.40044004]
[1750583338881,11.41443236,2272.6,2272.4,4.40054602]
[1750583339055,11.41443236,2272.6,2272.5,4.40044004]
[1750583339254,6.68100424,2273.4,2272.9,4.39964936]
[1750583339455,10.55,2273.2,2272.4,4.40059469]
[1750583339777,10.0,2273.2,2272.9,4.3995599]
[1750583340146,10.0,2273.2,2272.8,4.39982713]
[1750583340477,10.0,2273.3,2272.9,4.39966553]
[1750583340657,10.48422598,2273.2,2272.8,4.39975958]
[1750583340850,10.48422598,2273.2,2272.7,4.39995644]
[1750583341055,10.0,2273.1,2272.7,4.39995644]
[1750583341644,10.0,2273.1,2272.6,5.19762922]
[1750583341964,10.0,2273.1,2272.5,4.40036348]
[1750583341965,0.55,2273.0,2272.9,4.39966562]
[1750583342163,0.55,2273.0,2272.5,4.40035398]
[1750583342164,1.6534226,2273.0,2272.5,4.40035398]
[1750583342360,17.283,2272.9,2272.8,4.3998592]
[1750583342560,10.7885,2273.1,2272.8,4.3998592]
[1750583342561,1.918,2273.1,2273.0,4.39947206]
[1750583342772,9.208,2273.1,2273.0,4.39947206]
[1750583343954,1.49375982,2273.4,2273.0,4.39947206]
[1750583344147,1.7219858,2273.4,2273.2,4.39908499]
[1750583344351,9.205,2273.3,2273.2,4.39908499]
[1750583344579,9.205,2273.3,2272.8,0.8315]
[1750583344788,9.205,2273.3,2273.0,4.39943388]
[1750583344986,9.205,2273.3,2272.9,4.39956579]
[1750583345250,0.7714,2273.2,2272.8,4.39976754]
[1750583345479,2.35828753,2273.2,2272.8,4.39976754]
[1750583345890,2.35828753,2273.2,2272.7,4.4000528]
[1750583346195,2.35828753,2273.2,2272.6,5.27573746]
[1750583346353,2.35828753,2273.2,2273.0,4.39929371]
[1750583347364,2.35828753,2273.2,2272.9,4.39958528]
[1750583347700,1.15632875,2273.1,2272.4,0.8315]
[1750583347890,9.203,2273.0,2272.9,4.39965779]
[1750583349690,9.203,2273.0,2272.8,4.39983856]
[1750583350492,9.203,2273.0,2272.9,4.39966562]
[1750583351324,1.15632875,2273.1,2273.0,4.39947206]
[1750583351484,9.202,2273.1,2273.0,4.39947206]
[1750583352508,10.1222,2273.1,2273.0,4.39947206]
[1750583352812,10.1222,2273.1,2272.9,4.39955692]
[1750583353218,10.1222,2273.1,2272.8,5.17808723]
[1750583353219,10.1222,2273.1,2273.0,4.39947206]
[1750583354217,9.202,2273.1,2273.0,4.39947206]
[1750583354534,1.49375982,2273.4,2272.9,4.39966562]
[1750583354736,3.41175982,2273.4,2273.3,4.39889147]
[1750583355031,10.70975982,2273.4,2273.3,4.39889147]
[1750583356121,11.7807358,2273.4,2273.1,4.39917514]
[1750583356303,11.7807358,2273.4,2273.1,4.39918232]
[1750583356499,12.5862358,2273.4,2272.8,0.8042]
[1750583356793,4.21725982,2273.4,2273.0,4.39930578]
[1750583356986,7.848,2273.3,2273.0,4.39930578]
[1750583357186,10.0,2273.2,2272.9,4.39964751]
[1750583358289,10.0,2273.2,2273.0,4.39946372]
[1750583358623,10.0,2273.2,2272.8,4.39967164]
[1750583358818,10.0,2273.2,2272.6,5.20442266]
[1750583358819,1.7848,2273.1,2272.6,5.20442266]
[1750583359036,8.1005,2273.0,2272.7,4.39996426]
[1750583359243,1.918,2272.9,2272.7,4.39996426]
[1750583359592,1.918,2272.9,2272.6,4.4001506]
[1750583359934,1.918,2272.9,2272.7,4.39989607]
[1750583360472,3.09833,2272.9,2272.5,4.400275]
[1750583360627,3.09833,2272.9,2272.7,4.39990419]
[1750583361039,3.09833,2272.9,2272.3,4.40082735]
[1750583361040,3.09833,2272.9,2272.8,4.3998592]
[1750583361840,3.09833,2272.9,2272.7,4.39995758]
[1750583362670,3.09833,2272.9,2272.8,4.3998592]
[1750583363677,3.09833,2272.9,2272.1,10.8205]
[1750583363865,1.119883,2272.8,2272.5,4.40033359]
[1750583364066,7.29,2272.7,2272.5,4.40033359]
[1750583364466,7.29,2272.7,2272.6,4.40024641]
[1750583365960,7.29,2272.7,2272.5,4.40033654]
[1750583366849,8.4408213,2272.7,2272.6,4.40024641]
[1750583367467,8.4408213,2272.7,2272.5,4.4003382]
[1750583367669,8.4408213,2272.7,2272.4,4.4005694]
[1750583367911,8.4408213,2272.7,2272.1,0.8205]
[1750583368104,8.4408213,2272.7,2272.4,4.40045207]
[1750583368262,8.4408213,2272.7,2272.3,4.40076422]
[1750583368263,0.84408213,2272.6,2272.3,4.40077963]
[1750583368457,0.84408213,2272.6,2272.1,5.22154623]
[1750583368658,1.64158213,2272.6,2272.2,4.40089986]
[1750583368959,1.64158213,2272.6,2272.3,4.40081996]
[1750583369665,0.55,2272.5,2271.9,0.8333]
[1750583369968,9.197,2272.4,2272.1,4.40105355]
[1750583370690,9.197,2272.4,2271.9,0.8333]
[1750583370894,0.55,2272.3,2271.8,0.2192008]
[1750583371110,1.61401582,2272.3,2272.0,4.4013173]
[1750583371757,0.7975,2272.2,2271.8,4.62080489]
[1750583371983,1.06401582,2272.3,2271.8,0.2192008]
[1750583372189,9.192,2272.2,2272.1,4.40121473]
[1750583372563,11.44315821,2272.5,2272.4,4.40063369]
[1750583372766,20.64615821,2272.5,2272.4,4.40063369]
[1750583372990,11.44315821,2272.5,2272.4,4.40063369]
[1750583373189,19.202,2272.5,2272.4,4.40063369]
[1750583373412,0.7975,2272.8,2272.7,4.4000528]
[1750583373703,19.9985,2272.8,2272.7,4.4000528]
[1750583374299,19.9985,2272.8,2272.6,4.4001461]
[1750583374955,0.55,2272.7,2272.4,4.40047421]
[1750583375160,0.55,2272.7,2272.5,4.40043799]
[1750583375161,3.60695,2272.7,2272.5,4.40043799]
[1750583376291,3.60695,2272.7,2272.6,4.40024641]
[1750583377539,0.55,2272.7,2272.6,4.40024641]
[1750583378431,0.55,2272.7,2272.5,4.40034406]
[1750583378931,0.55,2272.7,2272.1,5.2344985]
[1750583379235,0.55,2272.7,2272.6,4.40024641]
[1750583380138,0.55,2272.8,2272.7,4.4000528]
[1750583380355,10.93355,2272.8,2272.7,4.4000528]
[1750583382436,10.571,2272.9,2272.8,4.3998592]
[1750583382628,19.761,2272.9,2272.8,4.3998592]
[1750583383224,19.761,2272.9,2272.7,4.39993966]
[1750583383425,1.3318,2272.8,2272.4,4.40052625]
[1750583383632,7.275,2272.7,2272.4,4.40052625]
[1750583383942,9.82435538,2272.7,2272.4,4.40052625]
[1750583384343,0.55,2272.6,2272.4,4.40052625]
[1750583384643,7.275,2272.5,2272.3,4.40073828]
[1750583384845,1.915,2272.4,2272.3,4.40073828]
[1750583388118,1.3318,2273.0,2272.7,4.4000528]
[1750583388344,9.189,2272.8,2272.7,4.4000528]
[1750583389657,12.78425193,2272.9,2272.7,4.4000528]
[1750583389955,9.189,2272.8,2272.7,4.4000528]
[1750583394855,10.571,2272.9,2272.8,4.3998592]
[1750583395228,19.76,2272.9,2272.8,4.3998592]
[1750583397777,19.76,2272.9,2272.7,4.39995031]
[1750583398073,21.736,2272.9,2272.6,4.4002392]
[1750583398230,21.736,2272.9,2272.7,4.40004637]
[1750583399360,22.286,2272.9,2272.8,4.3998592]
[1750583399568,11.121,2272.9,2272.8,4.3998592]
[1750583399862,20.309,2272.9,2272.8,4.3998592]
[1750583400257,20.309,2272.9,2272.7,4.39991927]
[1750583400458,20.309,2272.9,2272.6,4.4002264]
[1750583400761,20.309,2272.9,2272.7,4.39994469]
[1750583401463,20.309,2272.9,2272.8,4.3998592]
[1750583402255,19.759,2272.9,2272.8,4.3998592]
[1750583403335,11.49819369,2273.3,2272.8,0.8087]
[1750583403542,1.49819369,2273.3,2273.2,4.39908499]
[1750583403737,10.68219369,2273.3,2273.2,4.39908499]
[1750583403975,1.912,2273.3,2273.2,4.39908499]
[1750583404140,9.184,2273.3,2273.2,4.39908499]
[1750583404781,9.184,2273.3,2273.1,4.39917738]
[1750583404948,9.184,2273.3,2273.2,4.39908499]
[1750583405754,9.184,2273.3,2273.1,4.39918633]
[1750583406435,0.7882,2273.2,2272.8,0.8087]
[1750583406696,7.272,2273.1,2273.0,4.39947206]
[1750583407481,7.272,2273.1,2272.8,0.8087]
[1750583407683,7.272,2273.1,2272.9,4.39957467]
[1750583408562,0.55,2273.0,2272.7,4.40002511]
[1750583408765,7.271,2272.9,2272.7,4.4000528]
[1750583408970,1.912,2272.8,2272.7,4.4000528]
[1750583410785,0.55,2273.1,2273.0,4.39934245]
[1750583410999,9.183,2273.1,2273.0,4.39934245]
[1750583411284,9.183,2273.1,2272.9,4.39958026]
[1750583411485,9.183,2273.1,2272.8,4.39977166]
[1750583412864,11.3057,2273.0,2272.6,4.40011587]
[1750583413380,11.3057,2273.0,2272.7,4.4000168]
[1750583413894,11.3057,2273.0,2272.8,4.39981993]
[1750583414264,10.7712115,2273.1,2272.8,4.39981993]
[1750583414265,0.23002148,2273.1,2272.8,0.8313]
[1750583414491,7.271,2273.0,2272.9,4.39966562]
[1750583414680,1.912,2273.2,2273.1,4.39927851]
[1750583415016,9.183,2273.2,2273.1,4.39927851]
[1750583416062,10.0,2273.4,2273.3,4.39889147]
[1750583416264,19.183,2273.4,2273.3,4.39889147]
[1750583416860,0.23000249,2273.6,2273.3,4.39876243]
[1750583417091,11.912,2273.4,2273.3,4.39876243]
[1750583417457,9.182,2273.4,2273.3,4.39876243]
[1750583418693,9.182,2273.4,2273.2,4.39897359]
[1750583419088,9.182,2273.4,2273.3,4.39889147]
[1750583419999,1.912,2273.4,2273.3,4.39889147]
[1750583420293,10.98250249,2273.6,2273.4,4.39850936]
[1750583420473,9.182,2273.5,2273.4,4.39850936]
[1750583421464,10.23000249,2273.6,2273.5,4.3985045]
[1750583421670,9.41200249,2273.6,2273.5,4.3985045]
[1750583421870,9.41200249,2273.6,2273.2,0.8313]
[1750583422172,0.55,2273.5,2273.2,4.398949]
[1750583422791,0.55,2273.5,2273.1,4.3992146]
[1750583422993,9.181,2273.4,2273.3,4.39872289]
[1750583423196,10.80198408,2273.7,2272.9,0.8313]
[1750583423397,9.181,2273.6,2273.3,4.39876445]
[1750583423702,9.181,2273.6,2272.9,5.23092558]
[1750583424005,9.181,2273.6,2273.3,4.39880585]
[1750583424906,1.3406,2273.5,2273.2,4.39899141]
[1750583425078,1.3406,2273.5,2273.3,4.39887913]
[1750583425707,1.3406,2273.5,2273.2,4.39894983]
[1750583426019,1.3406,2273.5,2273.3,4.39888191]
[1750583426373,1.3406,2273.5,2273.2,4.39903048]
[1750583426703,3.91277534,2273.5,2272.9,5.23085156]
[1750583426885,3.91277534,2273.5,2273.2,4.39906062]
[1750583427090,3.91277534,2273.5,2273.1,4.39921234]
[1750583427805,3.91277534,2273.5,2273.3,4.39888255]
[1750583428475,3.91277534,2273.5,2273.3,4.39882246]
[1750583428476,0.7906,2273.5,2273.3,4.39882246]
[1750583429337,9.18,2273.4,2273.3,4.39882545]
[1750583432136,10.80198475,2273.7,2273.6,4.39831104]
[1750583432293,10.80198475,2273.7,2273.2,4.39908499]
[1750583432294,19.97998475,2273.7,2273.1,4.3992105]
[1750583432618,19.97998475,2273.7,2273.3,4.39884365]
[1750583432810,22.99382568,2273.7,2273.3,4.39884365]
[1750583433009,22.99382568,2273.7,2273.4,4.39869678]
[1750583433323,22.99382568,2273.7,2273.6,4.39831104]
[1750583433324,10.80198475,2273.7,2273.6,4.39831104]
[1750583433524,12.71198475,2273.7,2273.6,4.39831104]
[1750583433688,19.97898475,2273.7,2273.6,4.39831104]
[1750583434126,12.71198475,2273.7,2273.6,4.39831104]
[1750583434307,19.749,2273.7,2273.6,4.39831104]
[1750583438308,19.749,2273.7,2273.4,4.39866919]
[1750583438511,19.749,2273.7,2273.5,4.39832673]
[1750583438699,12.482,2273.7,2273.6,4.39831104]
[1750583439027,19.748,2273.7,2273.6,4.39831104]
[1750583441206,19.748,2273.7,2273.6,5.20791104]
[1750583443438,19.747,2273.7,2273.6,5.20791104]
[1750583443733,7.265,2273.7,2273.6,5.20791104]
[1750583444825,1.91,2273.9,2273.8,4.39792417]
[1750583445030,9.175,2273.9,2273.8,4.39792417]
[1750583445229,1.91,2273.9,2273.8,4.44189937]
[1750583445436,1.48841652,2274.1,2274.0,5.21693737]
[1750583445643,1.48841652,2274.1,2274.0,12.92942315]
[1750583445838,8.75341652,2274.1,2274.0,12.88545605]
[1750583446042,8.75341652,2274.1,2274.0,5.21693737]
[1750583446239,1.48841652,2274.1,2274.0,12.88545605]
[1750583447655,1.909,2275.0,2274.5,5.21597067]
[1750583447810,1.909,2275.0,2274.9,4.39579761]
[1750583448010,9.173,2275.0,2274.9,5.21519761]
[1750583448206,1.909,2275.0,2274.9,5.25915176]
[1750583448446,9.173,2275.0,2274.9,5.25915176]
[1750583449114,12.476,2275.4,2275.3,4.39502483]
[1750583449446,19.739,2275.4,2275.3,4.39502483]
[1750583450114,10.567,2275.4,2275.3,4.39502483]
[1750583450352,7.262,2275.4,2275.3,5.21430849]
[1750583450750,0.229794,2275.7,2275.5,4.39462178]
[1750583450951,9.171,2275.6,2275.3,5.21430849]
[1750583451156,9.171,2275.6,2275.4,4.39483167]
[1750583452154,9.171,2275.6,2275.5,4.39463854]
[1750583452528,9.171,2275.6,2275.4,4.39472448]
[1750583452737,0.798,2275.5,2274.8,5.21528175]
[1750583453038,0.798,2275.5,2275.2,4.39516968]
[1750583453235,0.798,2275.5,2275.3,4.39501536]
[1750583453448,0.229794,2275.7,2275.2,0.04394754]
[1750583453449,1.011694,2275.7,2275.2,0.04394754]
[1750583453626,19.169,2275.6,2275.0,4.39554237]
[1750583453974,19.169,2275.6,2275.2,4.39510984]
[1750583454322,19.169,2275.6,2275.3,4.39500352]
[1750583455256,19.169,2275.6,2275.2,4.39512648]
[1750583455478,19.169,2275.6,2275.0,4.39553234]
[1750583455479,0.7819,2275.4,2275.0,4.39550098]
[1750583455629,7.26,2275.3,2275.0,4.39550098]
[1750583456175,7.26,2275.3,2275.1,4.39540186]
[1750583456371,7.26,2275.3,2275.2,4.395218]
[1750583459774,11.908,2275.6,2275.5,4.39463854]
[1750583459973,19.166,2275.6,2275.5,4.39463854]
[1750583460173,1.908,2275.6,2275.5,4.39463854]
[1750583460377,9.166,2275.6,2275.5,4.39463854]
[1750583462183,9.166,2275.6,2275.1,0.7605]
[1750583462346,9.166,2275.6,2275.5,4.39463854]
[1750583462851,0.7819,2275.8,2275.4,4.39479435]
[1750583463069,9.164,2275.6,2275.5,4.39463854]
[1750583463952,9.164,2275.6,2275.1,0.7605]
[1750583464137,9.9672,2275.6,2275.3,4.39485998]
[1750583464338,9.9672,2275.6,2275.3,4.39496382]
[1750583464532,9.9672,2275.6,2274.3,4.39689831]
[1750583464533,4.94468893,2275.5,2275.0,4.39556403]
[1750583464870,0.8032,2275.4,2275.0,4.39556403]
[1750583464986,0.55,2275.1,2274.7,4.39602135]
[1750583465290,0.8032,2274.9,2274.7,4.39602135]
[1750583466248,0.8032,2274.9,2274.8,4.39599085]
[1750583466649,0.8032,2274.9,2274.5,4.39650799]
[1750583466850,0.8032,2274.9,2274.7,4.39616803]
[1750583467259,0.8032,2274.9,2274.8,4.39599085]
[1750583467874,0.8032,2274.9,2274.7,4.39609092]
[1750583468872,0.8032,2274.9,2274.8,4.39599085]
[1750583470044,9.163,2275.0,2274.9,4.39579761]
[1750583470678,9.163,2275.0,2274.7,4.39609002]
[1750583471081,9.163,2275.0,2274.8,4.39595721]
[1750583472783,10.21317,2275.0,2274.7,4.39612061]
[1750583473382,10.21317,2275.0,2274.7,4.39608998]
[1750583473774,10.21317,2275.0,2274.6,4.39631642]
[1750583474571,14.6087842,2275.0,2274.5,4.39646459]
[1750583474869,0.7887,2274.8,2274.5,4.39646459]
[1750583475075,0.7887,2274.8,2274.6,4.39636654]
[1750583475574,0.55,2274.9,2274.7,4.39618411]
[1750583475760,0.55,2274.9,2274.8,4.39595539]
[1750583476181,0.55,2274.9,2274.7,4.39607837]
[1750583476345,16.10106826,2274.9,2274.4,4.39667343]
[1750583476777,11.93504224,2274.9,2274.6,4.39620277]
[1750583477177,11.93504224,2274.9,2274.5,4.39647363]
[1750583477590,16.33086028,2274.9,2274.4,4.3966844]
[1750583477776,0.8115,2274.7,2274.4,4.3966844]